Workbook

Sheet Mitarbeiterinformationen
A2: Mitarbeiterinformationen
A3: [Firmenname]
A4: Mitarbeiter-ID | B4: Mitarbeitername | C4: Stundenlohn | D4: Steuerstatus | E4: Bundesfreibetrag (aus W-4) | F4: Staatliche Steuer | G4: Bundeseinkommenssteuer (Basierend auf Bundesfreibetrag) | H4: Sozialversicherungssteuer | I4: Medicare-Steuer | J4: Gesamtbetrag der einbehaltenen Steuern | K4: Abzug für Versicherungen | L4: Sonstige reguläre Abzüge | M4: Summe der regulären Abzüge (ohne Steuern)
A5: 1 | B5: Jesper Aaberg | C5: 10.00 € | D5: 1 | E5: 4 | F5: 2.30% | G5: 28.00% | H5: 6.30% | I5: 1.45% | J5: =Tabelle1[[#This Row],[Staatliche Steuer]]+Tabelle1[[#This Row],[Bundeseinkommenssteuer (Basierend auf Bundesfreibetrag)]]+Tabelle1[[#This Row],[Sozialversicherungssteuer]]+Tabelle1[[#This Row],[Medicare-Steuer]] -> 38.05% | K5: 20.00 € | L5: 40.00 € | M5: =Tabelle1[[#This Row],[Abzug für Versicherungen]]+Tabelle1[[#This Row],[Sonstige reguläre Abzüge]] -> 60.00 €
A6: 2 | B6: Wilson Pais | C6: 13.00 € | D6: 1 | E6: 4 | F6: 2.30% | G6: 28.00% | H6: 6.30% | I6: 1.45% | J6: =Tabelle1[[#This Row],[Staatliche Steuer]]+Tabelle1[[#This Row],[Bundeseinkommenssteuer (Basierend auf Bundesfreibetrag)]]+Tabelle1[[#This Row],[Sozialversicherungssteuer]]+Tabelle1[[#This Row],[Medicare-Steuer]] -> 38.05% | K6: 20.00 € | L6: 52.00 € | M6: =Tabelle1[[#This Row],[Abzug für Versicherungen]]+Tabelle1[[#This Row],[Sonstige reguläre Abzüge]] -> 72.00 €
A7: 3 | B7: Kathie Flood | C7: 10.00 € | D7: 1 | E7: 4 | F7: 2.30% | G7: 28.00% | H7: 6.30% | I7: 1.45% | J7: =Tabelle1[[#This Row],[Staatliche Steuer]]+Tabelle1[[#This Row],[Bundeseinkommenssteuer (Basierend auf Bundesfreibetrag)]]+Tabelle1[[#This Row],[Sozialversicherungssteuer]]+Tabelle1[[#This Row],[Medicare-Steuer]] -> 38.05% | K7: 20.00 € | L7: 0 | M7: =Tabelle1[[#This Row],[Abzug für Versicherungen]]+Tabelle1[[#This Row],[Sonstige reguläre Abzüge]] -> 20.00 €

Sheet Lohn-und Gehaltsrechner
A1: Lohn-und Gehaltsrechner
J2: Ende des Zeitraums: | K2: 4568800.00%
A3: =Mitarbeiterinformationen!$A$3 -> [Firmenname]
A4: Mitarbeiter-ID | B4: Mitarbeitername | C4: Reguläre Arbeitsstunden | D4: Urlaubsstunden | E4: Krankheitsstunden | F4: Überstunden | G4: Überstundensatz | H4: Bruttogehalt | I4: Steuern und Abzüge | J4: Sonstige Abzüge | K4: Nettogehalt
A5: 1 | B5: =VLOOKUP(A5,Tabelle1[],2,FALSE) -> Jesper Aaberg | C5: 50.00 | D5: 5.00 | E5: 1.00 | H5: =(VLOOKUP(A5,Tabelle1[],3,FALSE)*(Tabelle2[[#This Row],[Reguläre Arbeitsstunden]]+Tabelle2[[#This Row],[Urlaubsstunden]]+Tabelle2[[#This Row],[Krankheitsstunden]])+Tabelle2[[#This Row],[Überstunden]]*Tabelle2[[#This Row],[Überstundensatz]]) -> 560.00 € | I5: =VLOOKUP(A5,Tabelle1[],10,FALSE)*Tabelle2[[#This Row],[Bruttogehalt]]+Tabelle1[[#This Row],[Summe der regulären Abzüge (ohne Steuern)]] -> 273.08 € | J5: 20.00 € | K5: =Tabelle2[[#This Row],[Bruttogehalt]]-Tabelle2[[#This Row],[Steuern und Abzüge ]]-Tabelle2[[#This Row],[Sonstige Abzüge]] -> 266.92 €
A6: 2 | B6: =VLOOKUP(A6,Tabelle1[],2,FALSE) -> Wilson Pais | C6: 40.00 | D6: 0.00 | E6: 0.00 | H6: =(VLOOKUP(A6,Tabelle1[],3,FALSE)*(Tabelle2[[#This Row],[Reguläre Arbeitsstunden]]+Tabelle2[[#This Row],[Urlaubsstunden]]+Tabelle2[[#This Row],[Krankheitsstunden]])+Tabelle2[[#This Row],[Überstunden]]*Tabelle2[[#This Row],[Überstundensatz]]) -> 520.00 € | I6: =VLOOKUP(A6,Tabelle1[],10,FALSE)*Tabelle2[[#This Row],[Bruttogehalt]]+Tabelle1[[#This Row],[Summe der regulären Abzüge (ohne Steuern)]] -> 269.86 € | J6: 52.00 € | K6: =Tabelle2[[#This Row],[Bruttogehalt]]-Tabelle2[[#This Row],[Steuern und Abzüge ]]-Tabelle2[[#This Row],[Sonstige Abzüge]] -> 198.14 €
A7: 3 | B7: =VLOOKUP(A7,Tabelle1[],2,FALSE) -> Kathie Flood | C7: 52.00 | D7: 0.00 | E7: 0.00 | F7: 2.00 | G7: 20.00 € | H7: =(VLOOKUP(A7,Tabelle1[],3,FALSE)*(Tabelle2[[#This Row],[Reguläre Arbeitsstunden]]+Tabelle2[[#This Row],[Urlaubsstunden]]+Tabelle2[[#This Row],[Krankheitsstunden]])+Tabelle2[[#This Row],[Überstunden]]*Tabelle2[[#This Row],[Überstundensatz]]) -> 560.00 € | I7: =VLOOKUP(A7,Tabelle1[],10,FALSE)*Tabelle2[[#This Row],[Bruttogehalt]]+Tabelle1[[#This Row],[Summe der regulären Abzüge (ohne Steuern)]] -> 233.08 € | J7: 20.00 € | K7: =Tabelle2[[#This Row],[Bruttogehalt]]-Tabelle2[[#This Row],[Steuern und Abzüge ]]-Tabelle2[[#This Row],[Sonstige Abzüge]] -> 306.92 €

Sheet Einzelne Gehaltsabrechnungen
C2: =(Mitarbeiterinformationen!$A$3) -> [Firmenname]
C3: Zeitraum: | D3: ='Lohn-und Gehaltsrechner'!$K$2 -> 4568800.00% | E3: Mitarbeitername | F3: =IFERROR(VLOOKUP(H3,Tabelle1[],2),"") -> Jesper Aaberg | G3: Mitarbeiter-ID | H3: 1
C5: Status | D5: =IFERROR(VLOOKUP(H3,Tabelle1[],4),"") -> 1 | E5: Freibetrag (aus W-4) | F5: =IFERROR(VLOOKUP(H3,Tabelle1[],5,FALSE),"") -> 4 | G5: Arbeitsstunden | H5: =IFERROR(VLOOKUP(H3,Tabelle2[],3,FALSE),"") -> 50
C6: Stundensatz | D6: =IFERROR(VLOOKUP(H3,Tabelle1[],3,FALSE),"") -> 10.00 € | E6: Überstundensatz | F6: =IFERROR(VLOOKUP(H3,Tabelle2[],7,FALSE),"") -> 0 | G6: Krankheitsstunden | H6: =IFERROR(VLOOKUP(H3,Tabelle2[],5,FALSE),"") -> 1
C7: Steuern auf Sozialversicherung | D7: =IFERROR(IFERROR(VLOOKUP(H3,Tabelle1[],8,FALSE),"")*H9,"") -> 35.28 € | E7: Einkommensteuer | F7: =IFERROR(IFERROR(VLOOKUP(H3,Tabelle1[],7,FALSE),"")*H9,"") -> 156.80 € | G7: Urlaubsstunden | H7: =IFERROR(VLOOKUP(H3,Tabelle2[],4,FALSE),"") -> 5
C8: Steuern auf Krankenversicherung | D8: =IFERROR(IFERROR(VLOOKUP(H3,Tabelle1[],9,FALSE),"")*H9,"") -> 8.12 € | E8: Kommunalsteuer | F8: =IFERROR(IFERROR(VLOOKUP(H3,Tabelle1[],6,FALSE),"")*H9,"") -> 12.88 € | G8: Überstunden | H8: =IFERROR(VLOOKUP(H3,Tabelle2[],6,FALSE),"") -> 0
C9: Abzug für Versicherungen | D9: =IFERROR(VLOOKUP(H3,Tabelle1[],11,FALSE),"") -> 20.00 € | E9: Sonstige reguläre Abzüge | F9: =IFERROR(VLOOKUP(H3,Tabelle1[],12,FALSE),"") -> 40.00 € | G9: Bruttogehalt | H9: =IFERROR(VLOOKUP(H3,Tabelle2[],8,FALSE),"") -> 560.00 €
C10: Steuern gesamt und reguläre Abzüge | D10: =IFERROR(SUM(F7:F9)+SUM(D7:D9),"") -> 273.08 € | E10: Sonstige Abzüge | F10: =IFERROR(VLOOKUP(H3,Tabelle2[],10,FALSE),"") -> 20.00 € | G10: Steuern gesamt und Abzüge | H10: =IFERROR(IFERROR(VLOOKUP(H3,Tabelle2[],9,FALSE),"")+F10,"") -> 293.08 €
G11: Nettogehalt | H11: =IFERROR(VLOOKUP(H3,Tabelle2[],11,FALSE),"") -> 266.92 €
C14: =(Mitarbeiterinformationen!$A$3) -> [Firmenname]
C15: Zeitraum: | D15: ='Lohn-und Gehaltsrechner'!$K$2 -> 4568800.00% | E15: Mitarbeitername | F15: =IFERROR(VLOOKUP(H15,Tabelle1[],2),"") -> Wilson Pais | G15: Mitarbeiter-ID | H15: 2
C17: Status | D17: =IFERROR(VLOOKUP(H15,Tabelle1[],4),"") -> 1 | E17: Freibetrag (aus W-4) | F17: =IFERROR(VLOOKUP(H15,Tabelle1[],5,FALSE),"") -> 4 | G17: Arbeitsstunden | H17: =IFERROR(VLOOKUP(H15,Tabelle2[],3,FALSE),"") -> 40
C18: Stundensatz | D18: =IFERROR(VLOOKUP(H15,Tabelle1[],3,FALSE),"") -> 13.00 € | E18: Überstundensatz | F18: =IFERROR(VLOOKUP(H15,Tabelle2[],7,FALSE),"") -> 0 | G18: Krankheitsstunden | H18: =IFERROR(VLOOKUP(H15,Tabelle2[],5,FALSE),"") -> 0
C19: Steuern auf Sozialversicherung | D19: =IFERROR(IFERROR(VLOOKUP(H15,Tabelle1[],8,FALSE),"")*H21,"") -> 32.76 € | E19: Einkommensteuer | F19: =IFERROR(IFERROR(VLOOKUP(H15,Tabelle1[],7,FALSE),"")*H21,"") -> 145.60 € | G19: Urlaubsstunden | H19: =IFERROR(VLOOKUP(H15,Tabelle2[],4,FALSE),"") -> 0
C20: Steuern auf Krankenversicherung | D20: =IFERROR(IFERROR(VLOOKUP(H15,Tabelle1[],9,FALSE),"")*H21,"") -> 7.54 € | E20: Kommunalsteuer | F20: =IFERROR(IFERROR(VLOOKUP(H15,Tabelle1[],6,FALSE),"")*H21,"") -> 11.96 € | G20: Überstunden | H20: =IFERROR(VLOOKUP(H15,Tabelle2[],6,FALSE),"") -> 0
C21: Abzug für Versicherungen | D21: =IFERROR(VLOOKUP(H15,Tabelle1[],11,FALSE),"") -> 20.00 € | E21: Sonstige reguläre Abzüge | F21: =IFERROR(VLOOKUP(H15,Tabelle1[],12,FALSE),"") -> 52.00 € | G21: Bruttogehalt | H21: =IFERROR(VLOOKUP(H15,Tabelle2[],8,FALSE),"") -> 520.00 €
C22: Steuern gesamt und reguläre Abzüge | D22: =IFERROR(SUM(F19:F21)+SUM(D19:D21),"") -> 269.86 € | E22: Sonstige Abzüge | F22: =IFERROR(VLOOKUP(H15,Tabelle2[],10,FALSE),"") -> 52.00 € | G22: Steuern gesamt und Abzüge | H22: =IFERROR(IFERROR(VLOOKUP(H15,Tabelle2[],9,FALSE),"")+F22,"") -> 321.86 €
G23: Nettogehalt | H23: =IFERROR(VLOOKUP(H15,Tabelle2[],11,FALSE),"") -> 198.14 €
C26: =(Mitarbeiterinformationen!$A$3) -> [Firmenname]
C27: Zeitraum: | D27: ='Lohn-und Gehaltsrechner'!$K$2 -> 4568800.00% | E27: Mitarbeitername | F27: =IFERROR(VLOOKUP(H27,Tabelle1[],2),"") -> Kathie Flood | G27: Mitarbeiter-ID | H27: 3
C29: Status | D29: =IFERROR(VLOOKUP(H27,Tabelle1[],4),"") -> 1 | E29: Freibetrag (aus W-4) | F29: =IFERROR(VLOOKUP(H27,Tabelle1[],5,FALSE),"") -> 4 | G29: Arbeitsstunden | H29: =IFERROR(VLOOKUP(H27,Tabelle2[],3,FALSE),"") -> 52
C30: Stundensatz | D30: =IFERROR(VLOOKUP(H27,Tabelle1[],3,FALSE),"") -> 10.00 € | E30: Überstundensatz | F30: =IFERROR(VLOOKUP(H27,Tabelle2[],7,FALSE),"") -> 20.00 € | G30: Krankheitsstunden | H30: =IFERROR(VLOOKUP(H27,Tabelle2[],5,FALSE),"") -> 0
C31: Steuern auf Sozialversicherung | D31: =IFERROR(IFERROR(VLOOKUP(H27,Tabelle1[],8,FALSE),"")*H33,"") -> 35.28 € | E31: Einkommensteuer | F31: =IFERROR(IFERROR(VLOOKUP(H27,Tabelle1[],7,FALSE),"")*H33,"") -> 156.80 € | G31: Urlaubsstunden | H31: =IFERROR(VLOOKUP(H27,Tabelle2[],4,FALSE),"") -> 0
C32: Steuern auf Krankenversicherung | D32: =IFERROR(IFERROR(VLOOKUP(H27,Tabelle1[],9,FALSE),"")*H33,"") -> 8.12 € | E32: Kommunalsteuer | F32: =IFERROR(IFERROR(VLOOKUP(H27,Tabelle1[],6,FALSE),"")*H33,"") -> 12.88 € | G32: Überstunden | H32: =IFERROR(VLOOKUP(H27,Tabelle2[],6,FALSE),"") -> 2
C33: Abzug für Versicherungen | D33: =IFERROR(VLOOKUP(H27,Tabelle1[],11,FALSE),"") -> 20.00 € | E33: Sonstige reguläre Abzüge | F33: =IFERROR(VLOOKUP(H27,Tabelle1[],12,FALSE),"") -> 0 | G33: Bruttogehalt | H33: =IFERROR(VLOOKUP(H27,Tabelle2[],8,FALSE),"") -> 560.00 €
C34: Steuern gesamt und reguläre Abzüge | D34: =IFERROR(SUM(F31:F33)+SUM(D31:D33),"") -> 233.08 € | E34: Sonstige Abzüge | F34: =IFERROR(VLOOKUP(H27,Tabelle2[],10,FALSE),"") -> 20.00 € | G34: Steuern gesamt und Abzüge | H34: =IFERROR(IFERROR(VLOOKUP(H27,Tabelle2[],9,FALSE),"")+F34,"") -> 253.08 €
G35: Nettogehalt | H35: =IFERROR(VLOOKUP(H27,Tabelle2[],11,FALSE),"") -> 306.92 €
C39: =(Mitarbeiterinformationen!$A$3) -> [Firmenname]
C40: Zeitraum: | D40: ='Lohn-und Gehaltsrechner'!$K$2 -> 4568800.00% | E40: Mitarbeitername | F40: =IFERROR(VLOOKUP(H40,Tabelle1[],2),"") ->  | G40: Mitarbeiter-ID
C42: Status | D42: =IFERROR(VLOOKUP(H40,Tabelle1[],4),"") ->  | E42: Freibetrag (aus W-4) | F42: =IFERROR(VLOOKUP(H40,Tabelle1[],5,FALSE),"") ->  | G42: Arbeitsstunden | H42: =IFERROR(VLOOKUP(H40,Tabelle2[],3,FALSE),"") -> 
C43: Stundensatz | D43: =IFERROR(VLOOKUP(H40,Tabelle1[],3,FALSE),"") ->  | E43: Überstundensatz | F43: =IFERROR(VLOOKUP(H40,Tabelle2[],7,FALSE),"") ->  | G43: Krankheitsstunden | H43: =IFERROR(VLOOKUP(H40,Tabelle2[],5,FALSE),"") -> 
C44: Steuern auf Sozialversicherung | D44: =IFERROR(IFERROR(VLOOKUP(H40,Tabelle1[],8,FALSE),"")*H46,"") ->  | E44: Einkommensteuer | F44: =IFERROR(IFERROR(VLOOKUP(H40,Tabelle1[],7,FALSE),"")*H46,"") ->  | G44: Urlaubsstunden | H44: =IFERROR(VLOOKUP(H40,Tabelle2[],4,FALSE),"") -> 
C45: Steuern auf Krankenversicherung | D45: =IFERROR(IFERROR(VLOOKUP(H40,Tabelle1[],9,FALSE),"")*H46,"") ->  | E45: Kommunalsteuer | F45: =IFERROR(IFERROR(VLOOKUP(H40,Tabelle1[],6,FALSE),"")*H46,"") ->  | G45: Überstunden | H45: =IFERROR(VLOOKUP(H40,Tabelle2[],6,FALSE),"") -> 
C46: Abzug für Versicherungen | D46: =IFERROR(VLOOKUP(H40,Tabelle1[],11,FALSE),"") ->  | E46: Sonstige reguläre Abzüge | F46: =IFERROR(VLOOKUP(H40,Tabelle1[],12,FALSE),"") ->  | G46: Bruttogehalt | H46: =IFERROR(VLOOKUP(H40,Tabelle2[],8,FALSE),"") -> 
C47: Steuern gesamt und reguläre Abzüge | D47: =IFERROR(SUM(F44:F46)+SUM(D44:D46),"") -> 0 | E47: Sonstige Abzüge | F47: =IFERROR(VLOOKUP(H40,Tabelle2[],10,FALSE),"") ->  | G47: Steuern gesamt und Abzüge | H47: =IFERROR(IFERROR(VLOOKUP(H40,Tabelle2[],9,FALSE),"")+F47,"") -> 
G48: Nettogehalt | H48: =IFERROR(VLOOKUP(H40,Tabelle2[],11,FALSE),"") -> 
